bitfinex/quotes_ETHUSD_20251110
["timestamp","ask_amount","ask_price","bid_price","bid_amount"]
[1762748130426,0.25673045,3625.2,3625.1,0.4647]
[1762748130626,3.62808591,3625.7,3625.1,0.9234]
[1762748130627,0.25673045,3625.6,3625.1,0.9234]
[1762748130796,0.25673045,3625.6,3625.1,0.85575189]
[1762748130797,0.25673045,3625.5,3625.1,0.85575189]
[1762748130987,0.25673045,3625.4,3625.2,0.4587]
[1762748131191,6.14467149,3625.3,3625.1,0.4687]
[1762748131390,0.25673045,3625.2,3625.1,0.4687]
[1762748131598,0.25673045,3625.3,3625.1,0.4687]
[1762748131828,0.25673045,3625.2,3625.1,0.4687]
[1762748132022,0.25673045,3625.3,3625.1,0.4687]
[1762748132205,4.01802846,3625.4,3625.1,0.4687]
[1762748132206,0.25673045,3625.2,3625.1,0.4687]
[1762748132387,0.25673045,3625.3,3625.1,0.4687]
[1762748132592,0.25673045,3625.2,3625.1,0.4687]
[1762748133103,0.25673045,3625.5,3625.1,1.26497825]
[1762748133286,0.25673045,3625.4,3625.1,0.4687]
[1762748133495,6.16574853,3625.2,3625.1,0.01]
[1762748133720,5.95177898,3625.2,3625.1,0.01]
[1762748133926,5.95177898,3625.2,3625.1,0.4647]
[1762748134122,3.48589894,3625.2,3625.1,0.01]
[1762748134324,8.18079098,3625.2,3625.1,0.01]
[1762748134522,8.63949098,3625.2,3625.1,0.01]
[1762748135103,9.19883799,3625.2,3625.1,0.01]
[1762748138832,8.73637436,3625.2,3625.1,0.01]
[1762748139031,7.21149098,3625.2,3625.1,0.01]
[1762748139253,4.74561094,3625.2,3625.1,0.01]
[1762748140044,5.24421094,3625.2,3625.1,0.01]
[1762748142608,4.27491094,3625.2,3625.1,0.4647]
[1762748143063,1.51644245,3625.2,3625.1,0.6531]
[1762748143243,4.27491094,3625.2,3625.1,0.01]
[1762748143435,4.27491094,3625.2,3625.1,0.6531]
[1762748143638,4.27491094,3625.2,3625.1,1.1118]
[1762748143834,4.27491094,3625.2,3625.1,0.6531]
[1762748145455,4.27462137,3625.2,3625.1,0.6531]
[1762748145857,4.74532137,3625.2,3625.1,0.01]
[1762748146876,5.24392137,3625.2,3625.1,0.01]
[1762748147385,4.74532137,3625.2,3625.1,0.011]
[1762748147570,5.80000786,3625.2,3625.1,0.011]
[1762748148637,5.30140786,3625.2,3625.1,0.011]
[1762748150580,5.76880786,3625.2,3625.1,0.011]
[1762748154150,5.76880786,3625.2,3625.1,0.9561]
[1762748154151,4.83070786,3625.2,3625.1,0.9561]
[1762748154485,4.83070786,3625.2,3625.1,0.4886]
[1762748154684,4.83070786,3625.2,3625.1,0.9477]
[1762748155383,4.83070786,3625.2,3625.1,0.4886]
[1762748155608,4.83070786,3625.2,3625.1,0.9477]
[1762748156273,2.07223937,3625.2,3625.1,0.9477]
[1762748156449,1.51615288,3625.2,3625.1,0.9477]
[1762748156779,4.27462137,3625.2,3625.1,0.9477]
[1762748157139,4.27462137,3625.2,3625.1,0.5086]
[1762748157337,0.25715341,3625.2,3625.1,0.5086]
[1762748157541,0.25715341,3625.2,3625.1,0.9677]
[1762748157857,0.25715341,3625.2,3625.1,4.52322288]
[1762748158571,0.002,3626.1,3625.5,2.75823489]
[1762748158785,2.75978384,3626.1,3626.0,0.4705]
[1762748159279,2.75978384,3626.1,3626.0,0.9296]
[1762748159280,0.002,3626.1,3626.0,0.9296]
[1762748159498,4.01949584,3626.1,3626.0,0.4705]
[1762748159699,2.75816416,3625.6,3625.5,0.4591]
[1762748159903,1.726312,3626.1,3625.5,0.4591]
[1762748160063,2.75814048,3625.7,3625.5,0.9296]
[1762748160463,2.75814048,3625.7,3625.6,0.4705]
[1762748162902,2.75826182,3625.5,3625.1,0.4901]
[1762748163111,0.1376,3625.4,3625.1,0.4901]
[1762748163470,2.75793596,3625.9,3625.3,0.4705]
[1762748163669,2.75831632,3625.4,3625.3,0.4705]
[1762748164108,2.75831632,3625.4,3625.1,0.031]
[1762748164109,2.75846849,3625.2,3625.1,0.031]
[1762748164405,3.01026849,3625.2,3625.1,0.031]
[1762748165612,2.75846849,3625.2,3625.1,0.031]
[1762748167236,3.22306849,3625.2,3625.1,0.031]
[1762748167730,1.259712,3625.7,3625.1,1.149]
[1762748168036,4.01802832,3625.4,3625.3,0.4705]
[1762748168332,2.75824024,3625.5,3625.1,0.6785]
[1762748168333,0.83026595,3626.1,3625.8,0.4705]
[1762748168499,2.75793596,3625.9,3625.8,0.4705]
[1762748168699,0.1376,3625.8,3625.3,0.02758392]
[1762748168899,2.75790767,3626.0,3625.9,0.4705]
[1762748168900,2.75791154,3626.0,3625.9,0.4705]
[1762748169935,0.002,3626.1,3625.9,0.4705]
[1762748169936,0.002,3626.1,3625.9,0.9296]
[1762748170145,0.002,3626.1,3626.0,0.4705]
[1762748170299,0.1396,3626.1,3626.0,0.9296]
[1762748170503,0.3963796,3626.1,3626.0,1.2983513]
[1762748170698,0.3963796,3626.1,3626.0,0.9296]
[1762748172545,0.002,3626.1,3626.0,3.6874599]
[1762748173108,0.002,3626.1,3626.0,0.9296]
[1762748173810,0.002,3626.1,3626.0,3.6874599]
[1762748174037,0.002,3626.1,3626.0,4.06996589]
[1762748174205,0.002,3626.1,3626.0,1.31210599]
[1762748174435,0.002,3626.1,3626.0,4.06996589]
[1762748174635,0.002,3626.1,3626.0,3.6874599]
[1762748175079,0.002,3626.1,3626.0,0.9296]
[1762748175836,0.002,3626.1,3626.0,0.4705]
[1762748176042,0.002,3626.1,3625.5,0.4591]
[1762748176271,0.1376,3626.0,3625.6,0.32174125]
[1762748176673,0.1376,3626.0,3625.9,0.4705]
[1762748179248,0.6022,3626.0,3625.4,2.75826491]
[1762748179449,0.1376,3625.9,3625.3,0.5967]
[1762748179653,0.1376,3625.9,3625.4,0.4591]
[1762748179850,0.1376,3625.9,3625.8,0.4705]
[1762748180038,0.1376,3625.9,3625.8,0.79336502]
[1762748180239,0.1376,3625.9,3625.8,1.25246502]
[1762748180479,0.1376,3625.9,3625.8,0.79336502]
[1762748180849,0.1376,3625.9,3625.8,0.4705]
[1762748181881,0.1376,3625.9,3625.5,0.4591]
[1762748182271,0.1376,3625.9,3625.3,0.1376]
[1762748182616,0.1376,3625.5,3625.1,0.2194]
[1762748182779,0.4676,3625.9,3625.1,0.2194]
[1762748182985,0.002,3626.0,3625.1,0.031]
[1762748182986,0.1376,3625.3,3625.1,0.031]
[1762748183216,3.22306849,3625.2,3625.1,0.031]
[1762748183524,3.47949105,3625.2,3625.1,0.031]
[1762748183867,3.94709105,3625.2,3625.1,0.031]
[1762748185322,3.93089105,3625.2,3625.1,0.031]
[1762748185525,1.17242256,3625.2,3625.1,0.031]
[1762748185805,0.72102256,3625.2,3625.1,0.031]
[1762748186213,3.47949105,3625.2,3625.1,0.031]
[1762748187017,0.72102256,3625.2,3625.1,0.031]
[1762748187307,3.01489105,3625.2,3625.1,0.031]
[1762748188175,0.25642256,3625.2,3625.1,0.031]
[1762748188584,3.48879105,3625.2,3625.1,0.031]
[1762748189110,3.94019105,3625.2,3625.1,0.031]
[1762748191397,5.19990305,3625.2,3625.1,0.031]
[1762748192906,5.7549026,3625.2,3625.1,0.031]
[1762748193440,6.3999026,3625.2,3625.1,0.031]
[1762748194241,5.39350305,3625.2,3625.1,0.031]
[1762748194404,5.84490305,3625.2,3625.1,0.031]
[1762748201563,6.39750305,3625.2,3625.1,0.031]
[1762748203065,5.75250305,3625.2,3625.1,0.031]
[1762748203359,5.39350305,3625.2,3625.1,0.031]
[1762748203766,5.84490305,3625.2,3625.1,0.031]
[1762748204348,4.27460305,3625.2,3625.1,0.7147]
[1762748204531,4.27460305,3625.2,3625.1,0.031]
[1762748204933,4.74850305,3625.2,3625.1,0.031]
[1762748205729,4.27460305,3625.2,3625.1,0.031]
[1762748206553,4.74850305,3625.2,3625.1,0.031]
[1762748207550,4.27460305,3625.2,3625.1,0.5294]
[1762748208446,4.72510305,3625.2,3625.1,0.031]
[1762748208655,5.19440305,3625.2,3625.1,0.031]
[1762748209333,5.74855979,3625.2,3625.1,0.031]
[1762748210685,6.39355979,3625.2,3625.1,0.031]
[1762748211935,6.50401507,3625.2,3625.1,0.031]
[1762748214102,6.50401507,3625.2,3625.1,1e-08]
[1762748214465,6.50426087,3625.2,3625.1,1e-08]
[1762748214973,12.77402077,3625.2,3625.1,1e-08]
[1762748215172,5.40846087,3625.2,3625.1,1e-08]
[1762748215420,9.02244082,3625.2,3625.1,1e-08]
[1762748216213,12.15732077,3625.2,3625.1,1e-08]
[1762748216590,9.02244082,3625.2,3625.1,1e-08]
[1762748217607,9.02244082,3625.2,3625.1,0.00100001]
[1762748217988,9.02444082,3625.2,3625.1,0.00100001]
[1762748221009,9.02654841,3625.2,3625.1,0.00100001]
[1762748223799,4.94356846,3625.2,3625.1,0.68230001]
[1762748224000,0.81493269,3625.2,3625.1,0.68230001]
[1762748224200,0.39626836,3625.2,3625.1,1.17400001]
[1762748225192,0.39626836,3625.2,3625.1,1.5672738]
[1762748225735,3.70808844,3625.2,3625.1,1.17400001]
[1762748226395,3.15473685,3625.2,3625.1,1.17400001]
[1762748227050,3.70581655,3625.2,3625.1,1.17400001]
[1762748227231,0.39626836,3625.2,3625.1,1.17400001]
[1762748227549,3.15473685,3625.2,3625.1,1.17400001]
[1762748227728,0.39626836,3625.2,3625.1,1.17400001]
[1762748228115,3.15473685,3625.2,3625.1,1.17400001]
[1762748229848,0.39626836,3625.2,3625.1,1.17400001]
[1762748230307,0.39626836,3625.2,3625.1,1.56726967]
[1762748230308,0.25866836,3625.2,3625.1,1.56726967]
[1762748230508,0.25866836,3625.2,3625.1,4.32581426]
[1762748231708,0.002,3625.6,3625.3,0.405504]
[1762748231951,0.002,3625.6,3625.5,3.25424024]
[1762748232450,0.002,3625.6,3625.5,0.9877]
[1762748233357,0.002,3625.6,3625.5,0.496]
[1762748233358,2.76016416,3625.6,3625.5,0.496]
[1762748234056,0.002,3625.6,3625.1,0.18630001]
[1762748234357,2.89606849,3625.2,3625.1,0.18630001]
[1762748234746,0.1376,3625.2,3625.1,1.17400001]
[1762748234940,2.89606849,3625.2,3625.1,1.17400001]
[1762748235173,2.89606849,3625.2,3625.1,0.68230001]
[1762748235479,0.1376,3625.2,3625.1,0.68230001]
[1762748235778,0.1396,3625.2,3625.1,0.68230001]
[1762748236142,0.1396,3625.2,3625.1,1.17400001]
[1762748237549,0.1396,3625.2,3625.1,0.68230001]
[1762748237960,0.1396,3625.2,3625.1,1.17400001]
[1762748240072,0.1396,3625.2,3625.1,1.56727455]
[1762748240854,0.1396,3625.2,3625.1,5.39527455]
[1762748242655,2.89806849,3625.2,3625.1,4.90357455]
[1762748242986,2.89806849,3625.2,3625.1,0.68230001]
[1762748243600,0.1396,3625.2,3625.1,0.68230001]
[1762748243890,0.39677241,3625.2,3625.1,0.68230001]
[1762748245967,3.1552409,3625.2,3625.1,0.00100001]
[1762748246494,3.1552409,3625.2,3625.1,0.47080001]
[1762748246791,3.1552409,3625.2,3625.1,0.00100001]
[1762748247087,3.1552409,3625.2,3625.1,0.47080001]
[1762748247651,0.39677241,3625.2,3625.1,0.47080001]
[1762748247870,0.39680003,3625.2,3625.1,0.47080001]
[1762748248600,0.39680003,3625.2,3625.1,0.65610001]
[1762748249006,3.15526852,3625.2,3625.1,0.65610001]
[1762748249355,0.39680003,3625.2,3625.1,0.65610001]
[1762748250120,0.39680003,3625.2,3625.1,1.11670001]
[1762748250501,0.39680003,3625.2,3625.1,1.88704211]
[1762748253424,0.39680003,3625.2,3625.1,0.00100001]
[1762748253726,0.39680003,3625.2,3625.1,1.11670001]
[1762748253923,0.25920003,3625.2,3625.1,1.11670001]
[1762748254300,0.25920003,3625.2,3625.1,3.8752446]
[1762748254625,0.25920003,3625.2,3625.1,1.11670001]
[1762748254830,0.25920003,3625.2,3625.1,2.17666456]
[1762748255038,0.25920003,3625.2,3625.1,4.93520915]
[1762748255536,0.25920003,3625.2,3625.1,2.17666456]
[1762748256606,0.25920003,3625.2,3625.1,1.71606456]
[1762748256803,0.25920003,3625.2,3625.1,0.65610001]
[1762748257008,3.01766852,3625.2,3625.1,0.00100001]
[1762748257213,3.65106852,3625.2,3625.1,0.00100001]
[1762748257521,4.11726852,3625.2,3625.1,0.00100001]
[1762748259490,8.86615944,3625.2,3625.1,0.00100001]
[1762748259694,9.37355944,3625.2,3625.1,0.00100001]
[1762748266332,9.48402143,3625.2,3625.1,0.00100001]
[1762748268619,9.01782143,3625.2,3625.1,0.00100001]
[1762748268824,5.43587836,3625.2,3625.1,0.00100001]
[1762748269018,4.82961637,3625.2,3625.1,0.00100001]
[1762748269653,4.27738052,3625.2,3625.1,0.49320001]
[1762748270069,0.25920003,3625.2,3625.1,0.49320001]
[1762748270226,3.01766852,3625.2,3625.1,0.67850001]
[1762748270564,0.25920003,3625.2,3625.1,0.67850001]
[1762748271026,3.01766852,3625.2,3625.1,1.16570001]
[1762748271343,0.25920003,3625.2,3625.1,1.16570001]
[1762748271662,3.01740634,3625.2,3625.1,0.49320001]
[1762748272468,3.01740634,3625.2,3625.1,0.00100001]
[1762748272643,3.98230634,3625.2,3625.1,0.00100001]
[1762748272850,3.48770634,3625.2,3625.1,0.00100001]
[1762748273030,3.98230634,3625.2,3625.1,0.00100001]
[1762748275739,3.48770634,3625.2,3625.1,0.00100001]
[1762748276136,3.01740634,3625.2,3625.1,0.00100001]
[1762748277042,3.01740634,3625.2,3625.1,0.48300001]
[1762748277442,3.01740634,3625.2,3625.1,0.00100001]
[1762748277443,3.48410634,3625.2,3625.1,0.00100001]
[1762748277963,3.01740634,3625.2,3625.1,0.48300001]
[1762748278276,3.01740634,3625.2,3625.1,0.00100001]
[1762748278483,3.48410634,3625.2,3625.1,0.00100001]
[1762748278660,3.96510634,3625.2,3625.1,0.00100001]
[1762748279266,3.48410634,3625.2,3625.1,0.00100001]
[1762748280294,3.01740634,3625.2,3625.1,0.00100001]
[1762748280458,0.25893785,3625.2,3625.1,1.11800001]
[1762748280797,0.25893785,3625.2,3625.1,0.48300001]
[1762748280986,3.01740634,3625.2,3625.1,0.00100001]
[1762748281290,3.48410634,3625.2,3625.1,0.00100001]
[1762748281659,3.01740634,3625.2,3625.1,0.00100001]
[1762748281905,3.01740634,3625.2,3625.1,0.48300001]
[1762748282067,3.48410634,3625.2,3625.1,0.00100001]
[1762748282871,3.01740634,3625.2,3625.1,0.00100001]
[1762748283105,0.25893785,3625.2,3625.1,0.00100001]
[1762748283287,0.25893785,3625.2,3625.1,1.11800001]
[1762748283461,0.25893785,3625.2,3625.1,1.61535871]
[1762748285659,0.25893785,3625.2,3625.1,1.16515871]
[1762748286754,0.25893785,3625.2,3625.1,1.61535871]
[1762748287304,0.25948371,3625.2,3625.1,1.61535871]
[1762748287627,3.0179522,3625.2,3625.1,0.48300001]
[1762748287789,3.0179522,3625.2,3625.1,0.00100001]
[1762748288309,0.25948371,3625.2,3625.1,0.66780001]
[1762748288512,0.25948371,3625.2,3625.1,1.11800001]
[1762748289396,0.25948371,3625.2,3625.1,1.61260001]
[1762748290299,3.0179522,3625.2,3625.1,1.61260001]
[1762748290636,3.0179522,3625.2,3625.1,1.16240001]
[1762748290838,0.25948371,3625.2,3625.1,0.66780001]
[1762748291001,0.25948371,3625.2,3625.1,1.11800001]
[1762748292114,0.25948371,3625.2,3625.1,0.66780001]
[1762748292450,0.25948371,3625.2,3625.1,1.11800001]
[1762748292615,0.25948371,3625.2,3625.1,1.61535863]
[1762748292930,0.25948371,3625.2,3625.1,4.77940722]
[1762748293117,0.25948371,3625.2,3625.1,4.91700722]
[1762748293548,0.25948371,3625.2,3625.1,8.74500722]
[1762748297422,0.002,3625.2,3625.1,11.68195029]
[1762748302575,0.002,3625.6,3625.5,3.16374424]
[1762748302725,0.002,3625.6,3625.5,7.17489443]
[1762748302925,0.002,3625.6,3625.5,7.76269443]
[1762748303223,0.002,3625.6,3625.5,11.59069443]
[1762748303556,0.002,3625.6,3625.5,7.76269443]
[1762748306041,0.002,3625.6,3625.5,4.82575136]
[1762748308365,0.002,3625.6,3625.5,0.72980712]
[1762748308366,0.4771,3625.6,3625.5,0.72980712]
[1762748308531,0.4771,3625.6,3625.5,3.828]
[1762748309777,0.002,3625.6,3625.5,4.3125]
[1762748309988,0.002,3625.6,3625.5,3.828]
[1762748312278,1.20705054,3625.6,3625.1,0.00100001]
[1762748312587,0.4728,3625.2,3625.1,0.00100001]
[1762748312785,0.72975054,3625.2,3625.1,0.00100001]
[1762748313090,3.96121903,3625.2,3625.1,0.00100001]
[1762748313389,1.20275054,3625.2,3625.1,0.00100001]
[1762748313786,3.96121903,3625.2,3625.1,0.00100001]
[1762748315099,1.20275054,3625.2,3625.1,0.00100001]
[1762748315257,0.25695054,3625.2,3625.1,0.00100001]
[1762748315776,0.25695054,3625.2,3625.1,0.48550001]
[1762748317503,0.25695054,3625.2,3625.1,0.00100001]
[1762748318711,0.73205054,3625.2,3625.1,0.00100001]
[1762748318875,3.96351903,3625.2,3625.1,0.00100001]
[1762748320708,3.96551903,3625.2,3625.1,0.00100001]
[1762748321676,4.51523526,3625.2,3625.1,0.00100001]
[1762748321876,5.77494726,3625.2,3625.1,0.00100001]
[1762748322515,5.77465083,3625.2,3625.1,0.00100001]
[1762748329030,8.90693727,3625.2,3625.1,0.00100001]
[1762748329228,9.01740933,3625.2,3625.1,0.00100001]
[1762748332360,9.0168478,3625.2,3625.1,0.00100001]
[1762748333473,9.01537171,3625.2,3625.1,0.00100001]
[1762748334670,2.75907736,3624.4,3624.3,0.001]
[1762748334857,10.39034282,3624.4,3624.3,0.001]
[1762748335169,10.87104282,3624.4,3624.3,0.001]
[1762748335867,7.73875638,3624.4,3624.3,0.001]
[1762748336235,10.87104282,3624.4,3624.3,0.001]
[1762748336435,11.41943974,3624.4,3624.3,0.001]
[1762748336667,8.2871533,3624.4,3624.3,0.001]
[1762748336868,8.28715766,3624.4,3624.3,0.001]
[1762748337862,11.4194441,3624.4,3624.3,0.001]
[1762748341860,11.52993752,3624.4,3624.3,0.001]
[1762748342463,8.39765108,3624.4,3624.3,0.001]
[1762748343160,5.26536464,3624.4,3624.3,0.001]
[1762748343388,8.28715766,3624.4,3624.3,0.001]
[1762748344963,12.6791561,3624.4,3624.3,0.001]
[1762748345386,12.78964616,3624.4,3624.3,0.001]
[1762748345902,9.65735972,3624.4,3624.3,0.001]
[1762748347394,12.78964616,3624.4,3624.3,0.001]
[1762748353108,12.78964616,3624.4,3623.1,0.01]
[1762748353109,2.75999116,3623.2,3623.1,0.01]
[1762748353313,12.19942929,3623.2,3623.1,0.01]
[1762748353492,12.68012929,3623.2,3623.1,0.01]
[1762748353711,12.19942929,3623.2,3623.1,0.01]
[1762748354271,12.68012929,3623.2,3623.1,0.01]
[1762748354599,12.68012929,3623.2,3623.1,1e-08]
[1762748355702,13.13152929,3623.2,3623.1,1e-08]
[1762748355881,12.00582929,3623.2,3623.1,1e-08]
[1762748356082,8.60384285,3623.2,3623.1,1e-08]
[1762748356303,11.73612929,3623.2,3623.1,1e-08]
[1762748356493,8.60384285,3623.2,3623.1,0.46770001]
[1762748356796,8.60384285,3623.2,3623.1,0.65880001]
[1762748358114,4.82655641,3623.2,3623.1,1.11020001]
[1762748358316,4.27579574,3623.2,3623.1,1.11020001]
[1762748358520,4.82619044,3623.2,3623.1,1.11020001]
[1762748360105,4.27579574,3623.2,3623.1,1.11020001]
[1762748363630,0.25609258,3623.2,3623.1,1.11020001]
[1762748364362,0.39369258,3623.2,3623.1,4.57053279]
[1762748364518,0.25609258,3623.2,3623.1,3.87026735]
[1762748364716,3.13228644,3625.0,3623.2,0.405504]
[1762748364921,2.75909156,3624.4,3624.0,0.1151]
[1762748365124,3.77728644,3625.0,3624.0,0.1151]
[1762748365366,3.30909622,3624.9,3624.6,0.6003]
[1762748365657,2.76061342,3625.1,3624.6,1.0972]
[1762748365658,2.760849,3624.7,3624.6,1.0972]
[1762748365826,0.002,3624.7,3624.6,1.0972]
[1762748366228,2.760849,3624.7,3624.6,1.0972]
[1762748366620,0.002,3624.7,3624.6,1.0972]
[1762748367034,0.1396,3624.7,3624.6,1.0972]
[1762748367457,0.002,3624.7,3624.6,4.24176017]
[1762748367656,0.002,3624.7,3624.6,3.85612512]
[1762748367860,0.002,3624.7,3624.6,7.39391556]
[1762748368044,0.002,3625.1,3624.9,2.75869679]
[1762748368362,0.002,3625.1,3625.0,0.76106968]
[1762748368564,0.002,3625.1,3625.0,3.51969036]
[1762748368724,0.002,3625.1,3625.0,1.25796968]
[1762748369434,0.002,3625.1,3625.0,0.76106968]
[1762748369645,5.89283103,3625.1,3625.0,0.4852]
[1762748370354,2.75881879,3624.8,3624.6,0.612]
[1762748370561,2.896449,3624.7,3624.6,0.612]
[1762748370719,2.896449,3624.7,3624.6,0.1151]
[1762748370924,2.896449,3624.7,3624.6,0.4852]
[1762748370925,6.02873544,3624.7,3624.6,0.4852]
[1762748371126,2.75897542,3624.6,3624.4,0.1151]
[1762748371436,3.26988644,3624.7,3624.6,0.4852]
[1762748371437,2.758849,3624.7,3624.6,0.4852]
[1762748371928,2.75900124,3624.5,3624.4,0.1151]
[1762748372447,3.13228644,3624.7,3624.4,0.6003]
[1762748372642,2.75900124,3624.5,3624.4,0.6003]
[1762748373235,2.7592062,3624.3,3624.1,0.1151]
[1762748373558,2.89682962,3624.2,3624.1,0.1151]
[1762748373925,2.89682962,3624.2,3624.1,0.6003]
[1762748374125,3.38502962,3624.2,3623.7,0.4969]
[1762748374362,2.89703327,3624.0,3623.7,0.4969]
[1762748374531,0.1376,3623.8,3623.7,0.4969]
[1762748374731,0.1376,3623.8,3623.6,0.1151]
[1762748374928,2.89713419,3623.8,3623.7,0.4852]
[1762748375646,2.75969375,3623.6,3623.3,0.4969]
[1762748375848,5.89182063,3623.8,3623.3,0.4969]
[1762748376052,2.75961034,3623.7,3623.5,0.4852]
[1762748376557,2.75968649,3623.6,3623.5,0.4852]
[1762748376866,0.4695,3624.2,3623.5,0.4852]
[1762748377062,2.7595975,3623.8,3623.5,0.4852]
[1762748377223,2.75958944,3623.8,3623.5,0.4852]
[1762748377429,2.75961928,3623.7,3623.5,0.4852]
[1762748377629,2.75968649,3623.6,3623.5,0.4852]
[1762748378338,0.1376,3623.5,3623.1,0.19210001]
[1762748378534,0.1376,3623.3,3623.1,0.19210001]
[1762748378733,2.75969595,3623.6,3623.4,0.4852]
[1762748378936,2.75960452,3623.8,3623.5,0.4852]
[1762748379157,0.1376,3623.5,3623.2,0.4969]
[1762748379343,2.75961226,3623.7,3623.3,0.34490021]
[1762748379530,2.75938431,3624.0,3623.9,0.4852]
[1762748379734,0.25540884,3624.0,3623.9,0.4852]
[1762748379932,0.25540884,3624.0,3623.9,0.9821]
[1762748380247,0.4695,3624.6,3623.9,0.9821]
[1762748380248,0.25540884,3624.5,3623.9,0.9821]
[1762748380450,2.75935283,3624.1,3623.9,0.9821]
[1762748380650,0.25540884,3624.0,3623.9,0.9821]
[1762748380828,0.1376,3623.9,3623.8,2.75953419]
[1762748381234,2.76050908,3625.2,3623.9,2.75942405]
[1762748381475,2.75893011,3624.6,3624.4,0.4852]
[1762748381634,0.25544097,3624.5,3624.4,0.4852]
[1762748381965,0.25544097,3624.6,3624.4,1.0972]
[1762748382143,0.25544097,3624.5,3624.4,0.612]
[1762748382339,1.259712,3624.8,3624.4,0.612]
[1762748382529,0.25544097,3624.7,3624.4,0.612]
[1762748382734,0.25544097,3624.7,3624.4,0.94912812]
[1762748382934,2.75869905,3624.9,3624.6,0.4852]
[1762748383129,2.89646917,3624.7,3624.4,0.94912812]
[1762748383360,0.1376,3624.7,3624.4,0.94912812]
[1762748383564,0.1376,3624.7,3624.6,0.4852]
[1762748383861,0.39306462,3624.7,3624.6,0.4852]
[1762748384464,3.15191362,3624.7,3624.6,0.4852]
[1762748385467,0.39306462,3624.7,3624.6,0.4852]
[1762748385634,3.15191362,3624.7,3624.6,0.4852]
[1762748386366,3.15191362,3624.7,3624.0,2.89691983]
[1762748386367,2.7590742,3624.5,3624.1,0.1151]
[1762748386556,2.89672512,3624.4,3624.1,0.1151]
[1762748386760,0.1376,3624.2,3624.1,0.1151]
[1762748386967,0.1376,3624.2,3624.1,0.612]
[1762748387272,0.1376,3624.2,3624.1,1.0972]
[1762748387471,0.1376,3624.2,3624.1,4.9252]
[1762748389561,0.1376,3624.2,3624.1,4.3132]
[1762748389739,2.89682962,3624.2,3624.1,4.3132]
[1762748390266,3.15285459,3624.2,3624.1,4.3132]
[1762748390431,0.39362497,3624.2,3624.1,4.3132]
[1762748391039,0.39362497,3624.2,3624.1,4.7663]
[1762748391464,0.39362497,3624.2,3624.1,4.2842]
[1762748392698,0.39362497,3624.2,3624.1,5.24293]
[1762748393383,0.14362497,3624.2,3624.1,8.00223575]
[1762748393804,0.1376,3624.6,3624.2,2.75920338]
[1762748394003,0.1376,3624.6,3624.2,3.24130338]
[1762748394175,0.1376,3624.6,3624.5,0.4562]
[1762748394377,0.1376,3624.6,3624.5,0.82594523]
[1762748394593,0.1376,3624.6,3624.5,1.30804523]
[1762748395299,0.1376,3625.0,3624.5,1.30804523]
[1762748395490,0.1376,3625.0,3624.9,0.4934]
[1762748395996,0.1376,3625.0,3624.9,1.35376723]
[1762748396384,0.1376,3625.0,3624.9,0.9799]
[1762748397183,0.002,3625.1,3624.9,0.9799]
[1762748397384,0.002,3625.1,3625.0,0.9799]
[1762748400721,0.4645,3625.1,3624.6,4.4521]
[1762748400921,0.4645,3625.1,3624.7,0.75807948]
[1762748401394,0.002,3625.1,3624.7,0.75807948]
[1762748401591,0.002,3625.1,3624.7,1.24457948]
[1762748402193,2.76059214,3625.1,3624.7,0.75807948]
[1762748403120,0.002,3625.1,3624.7,0.75807948]
[1762748403418,0.002,3625.1,3624.6,6.72451543]
[1762748403419,0.002,3625.1,3624.8,0.78523401]
[1762748403584,0.4883,3625.1,3624.6,3.9656]
[1762748403783,0.002,3625.1,3625.0,0.4934]
[1762748404807,0.4645,3625.1,3624.6,3.9656]
[1762748405007,0.4645,3625.1,3624.5,0.36974523]
[1762748405318,0.1376,3624.8,3624.3,0.4865]
[1762748405492,0.1376,3624.8,3624.3,3.24564762]
[1762748405697,0.1376,3624.8,3624.7,0.4934]
[1762748407688,0.1376,3624.8,3624.7,0.48693]
[1762748409222,0.1376,3624.8,3624.7,0.97343]
[1762748411347,0.002,3625.1,3624.7,4.48825482]
[1762748411483,0.1396,3625.1,3625.0,0.4934]
[1762748411686,0.39614802,3625.1,3625.0,0.4934]
[1762748412604,0.39618557,3625.1,3625.0,0.4934]
[1762748412805,2.75866234,3625.0,3624.6,3.828]
[1762748413006,3.8469712,3625.1,3624.7,0.39656]
[1762748413311,0.25658806,3625.0,3624.7,0.39656]
[1762748413514,0.4625,3624.8,3624.6,3.828]
[1762748413711,3.35888372,3624.8,3624.6,3.828]
[1762748414037,3.26851913,3624.7,3624.6,3.828]
[1762748414339,3.75481913,3624.7,3624.6,3.828]
[1762748416261,0.99597013,3624.7,3624.6,3.828]
[1762748416631,0.99597013,3624.7,3624.2,3.828]
[1762748416838,0.1376,3624.5,3624.2,3.828]
[1762748417661,2.89664738,3624.5,3624.2,3.828]
[1762748418682,2.89664738,3624.5,3624.3,3.828]
[1762748418683,0.1376,3624.5,3624.3,3.828]
[1762748418923,0.6001,3624.2,3624.1,3.829]
[1762748419045,3.6159228,3624.2,3624.1,0.001]
[1762748419484,4.1022228,3624.2,3624.1,0.001]
[1762748420353,4.10214312,3624.2,3624.1,0.001]
[1762748421933,5.36185512,3624.2,3624.1,0.001]
[1762748422873,5.90899371,3624.2,3624.1,0.001]
[1762748423191,6.00685512,3624.2,3624.1,0.001]
[1762748423482,6.55381252,3624.2,3624.1,0.001]
[1762748424140,6.55338869,3624.2,3624.1,0.001]
[1762748425151,6.00643129,3624.2,3624.1,0.001]
[1762748427178,6.55275703,3624.2,3624.1,0.001]
[1762748427391,0.2436,3623.8,3622.4,0.1376]
[1762748427673,8.27791725,3624.1,3621.1,0.5147]
[1762748427674,4.02046513,3622.2,3621.1,0.5147]
[1762748427872,8.33312225,3622.2,3621.1,0.5147]
[1762748428079,8.78702225,3622.2,3621.1,0.5147]
[1762748428842,5.8505548,3622.2,3621.1,0.5147]
[1762748430853,5.8505548,3622.2,3621.1,0.03]
[1762748431048,2.76151551,3621.2,3621.1,0.03]
[1762748431373,3.30200518,3621.2,3621.1,0.03]
[1762748431576,3.75590518,3621.2,3621.1,0.03]
[1762748434289,0.25608967,3621.2,3621.1,0.6056]
[1762748434785,3.01760518,3621.2,3621.1,0.6056]